[Event "Titled Tuesday Blitz August 22 Early 2023"]
[White "Janaszak, Dawid"]
[Black "Korchmar, Vasiliy"]
[WhiteFideId "1119206"]
[BlackFideId "24131750"]
[WhiteElo "2508"]
[BlackElo "2680"]
[Result "0-1"]
[Round "8"]
[TimeControl "180+1"]
[Date "2023.08.22"]
[WhiteClock "0:00:00"]
[BlackClock "0:00:20"]
[Board "58"]

1. Nf3 {[%clk 0:03:00]}  d5 {[%clk 0:02:59]} 2. d4 {[%clk 0:03:01]}  Nf6 {[%clk 0:02:59]} 3. Bf4 {[%clk 0:03:01]}  c5 {[%clk 0:02:59]} 4. e3 {[%clk 0:03:01]}  Nc6 {[%clk 0:03:00]} 5. Nbd2 {[%clk 0:03:01]}  cxd4 {[%clk 0:03:00]} 6. exd4 {[%clk 0:03:01]}  Qb6 {[%clk 0:03:01]} 7. Nb3 {[%clk 0:03:01]}  Bg4 {[%clk 0:03:01]} 8. h3 {[%clk 0:02:57]}  Bh5 {[%clk 0:03:00]} 9. Be2 {[%clk 0:02:55]}  e6 {[%clk 0:03:00]} 10. O-O {[%clk 0:02:55]}  Be7 {[%clk 0:03:00]} 11. a4 {[%clk 0:02:55]}  a6 {[%clk 0:02:59]} 12. a5 {[%clk 0:02:55]}  Qd8 {[%clk 0:02:59]} 13. Ne1 {[%clk 0:02:41]}  Bxe2 {[%clk 0:03:00]} 14. Qxe2 {[%clk 0:02:42]}  O-O {[%clk 0:02:59]} 15. Nd3 {[%clk 0:02:41]}  Ne4 {[%clk 0:02:54]} 16. Rfe1 {[%clk 0:02:33]}  Rc8 {[%clk 0:02:53]} 17. c3 {[%clk 0:02:31]}  Re8 {[%clk 0:02:42]} 18. f3 {[%clk 0:02:29]}  Nd6 {[%clk 0:02:43]} 19. Ndc5 {[%clk 0:02:27]}  Bh4 {[%clk 0:02:23]} 20. Red1 {[%clk 0:02:16]}  Re7 {[%clk 0:02:23]} 21. Nc1 {[%clk 0:02:05]}  Nc4 {[%clk 0:02:22]} 22. b4 {[%clk 0:01:56]}  e5 {[%clk 0:02:10]} 23. dxe5 {[%clk 0:01:56]}  N6xe5 {[%clk 0:02:10]} 24. Qc2 {[%clk 0:01:19]}  Qd6 {[%clk 0:02:08]} 25. Qf5 {[%clk 0:01:17]}  Rce8 {[%clk 0:02:03]} 26. N1d3 {[%clk 0:00:50]}  g6 {[%clk 0:02:04]} 27. Bxe5 {[%clk 0:00:46]}  Nxe5 {[%clk 0:02:02]} 28. Qf4 {[%clk 0:00:42]}  Bf6 {[%clk 0:01:43]} 29. Nf2 {[%clk 0:00:42]}  Qc6 {[%clk 0:01:36]} 30. Rac1 {[%clk 0:00:36]}  Nc4 {[%clk 0:01:36]} 31. Ng4 {[%clk 0:00:34]}  Bg7 {[%clk 0:01:35]} 32. Nh6+ {[%clk 0:00:27]}  Kf8 {[%clk 0:01:34]} 33. Ng4 {[%clk 0:00:25]}  h5 {[%clk 0:01:33]} 34. Nf2 {[%clk 0:00:23]}  Kg8 {[%clk 0:01:33]} 35. Qg5 {[%clk 0:00:19]}  Kh7 {[%clk 0:01:18]} 36. Rb1 {[%clk 0:00:16]}  Re2 {[%clk 0:01:15]} 37. Nfd3 {[%clk 0:00:10]}  Bh6 {[%clk 0:01:09]} 38. Qg3 {[%clk 0:00:10]}  Ne3 {[%clk 0:01:08]} 39. Nf4 {[%clk 0:00:05]}  Bxf4 {[%clk 0:01:00]} 40. Qxf4 {[%clk 0:00:06]}  Rxg2+ {[%clk 0:01:00]} 41. Kh1 {[%clk 0:00:07]}  Kg8 {[%clk 0:00:45]} 42. Re1 {[%clk 0:00:07]}  Qc8 {[%clk 0:00:46]} 43. Qh4 {[%clk 0:00:04]}  Nf5 {[%clk 0:00:40]} 44. Qf6 {[%clk 0:00:04]}  Rge2 {[%clk 0:00:32]} 45. Rxe2 {[%clk 0:00:03]}  Rxe2 {[%clk 0:00:33]} 46. Rg1 {[%clk 0:00:02]}  h4 {[%clk 0:00:30]} 47. Rg2 {[%clk 0:00:02]}  Ng3+ {[%clk 0:00:28]} 48. Kh2 {[%clk 0:00:02]}  Re1 {[%clk 0:00:26]} 49. Qxh4 {[%clk 0:00:02]}  Nf1+ {[%clk 0:00:19]} 50. Kg1 {[%clk 0:00:00]}  Qe8 {[%clk 0:00:20]} 0-1


[Site "https://www.chess.com"]

[Event "Titled Tuesday Blitz August 22 Early 2023"]
[White "Kushko, Dmitriy"]
[Black "Nazaretyan, Tigran"]
[WhiteFideId "14162261"]
[BlackFideId "24162345"]
[WhiteElo "2759"]
[BlackElo "2541"]
[Result "1-0"]
[Round "8"]
[TimeControl "180+1"]
[Date "2023.08.22"]
[WhiteClock "0:00:46"]
[BlackClock "0:00:00"]
[Board "62"]

1. Nf3 {[%clk 0:03:00]}  Nf6 {[%clk 0:01:57]} 2. g3 {[%clk 0:02:59]}  g6 {[%clk 0:01:56]} 3. Bg2 {[%clk 0:02:58]}  Bg7 {[%clk 0:01:57]} 4. d4 {[%clk 0:02:59]}  O-O {[%clk 0:01:58]} 5. O-O {[%clk 0:02:59]}  d6 {[%clk 0:01:58]} 6. Re1 {[%clk 0:02:58]}  c5 {[%clk 0:01:57]} 7. dxc5 {[%clk 0:02:57]}  dxc5 {[%clk 0:01:57]} 8. c3 {[%clk 0:02:58]}  Nc6 {[%clk 0:01:56]} 9. Qxd8 {[%clk 0:02:58]}  Rxd8 {[%clk 0:01:56]} 10. Be3 {[%clk 0:02:58]}  Nd7 {[%clk 0:01:38]} 11. Rd1 {[%clk 0:02:57]}  Rb8 {[%clk 0:01:36]} 12. Na3 {[%clk 0:02:41]}  b6 {[%clk 0:01:34]} 13. Bf4 {[%clk 0:02:29]}  e5 {[%clk 0:01:32]} 14. Bg5 {[%clk 0:02:26]}  f6 {[%clk 0:01:31]} 15. Be3 {[%clk 0:02:26]}  Ba6 {[%clk 0:01:31]} 16. Ng5 {[%clk 0:02:08]}  fxg5 {[%clk 0:01:15]} 17. Bxc6 {[%clk 0:02:06]}  Nf6 {[%clk 0:01:06]} 18. Bxg5 {[%clk 0:01:54]}  Bxe2 {[%clk 0:01:03]} 19. Re1 {[%clk 0:01:54]}  Ba6 {[%clk 0:00:55]} 20. Rxe5 {[%clk 0:01:53]}  h6 {[%clk 0:00:55]} 21. Bxf6 {[%clk 0:01:30]}  Bxf6 {[%clk 0:00:55]} 22. Re6 {[%clk 0:01:23]}  Kf7 {[%clk 0:00:53]} 23. Rae1 {[%clk 0:01:24]}  Rd2 {[%clk 0:00:46]} 24. Bb5 {[%clk 0:01:21]}  Bb7 {[%clk 0:00:31]} 25. Nc4 {[%clk 0:01:19]}  Rdd8 {[%clk 0:00:26]} 26. Nd6+ {[%clk 0:01:17]}  Rxd6 {[%clk 0:00:22]} 27. Rxd6 {[%clk 0:01:17]}  g5 {[%clk 0:00:18]} 28. Bc4+ {[%clk 0:00:56]}  Kg7 {[%clk 0:00:16]} 29. Ree6 {[%clk 0:00:56]}  Bd8 {[%clk 0:00:11]} 30. Re8 {[%clk 0:00:51]}  b5 {[%clk 0:00:09]} 31. Rdxd8 {[%clk 0:00:49]}  Rxd8 {[%clk 0:00:08]} 32. Rxd8 {[%clk 0:00:50]}  Bf3 {[%clk 0:00:08]} 33. Bd5 {[%clk 0:00:49]}  Be2 {[%clk 0:00:07]} 34. Rd7+ {[%clk 0:00:49]}  Kf6 {[%clk 0:00:06]} 35. Rxa7 {[%clk 0:00:50]}  Ke5 {[%clk 0:00:07]} 36. Bg2 {[%clk 0:00:48]}  Bd3 {[%clk 0:00:05]} 37. a4 {[%clk 0:00:45]}  bxa4 {[%clk 0:00:05]} 38. Rxa4 {[%clk 0:00:45]}  h5 {[%clk 0:00:04]} 39. f4+ {[%clk 0:00:45]}  gxf4 {[%clk 0:00:04]} 40. Rxf4 {[%clk 0:00:46]}  c4 {[%clk 0:00:02]} 41. h4 {[%clk 0:00:45]}  Ke6 {[%clk 0:00:00]} 42. Kf2 {[%clk 0:00:46]} 1-0


[Site "https://www.chess.com"]

[Event "Titled Tuesday Blitz August 22 Early 2023"]
[White "Starozhilov, Leonid"]
[Black "Al-Tarboush, Ward"]
[WhiteFideId "14106752"]
[BlackFideId "7601450"]
[WhiteElo "2750"]
[BlackElo "2537"]
[Result "1-0"]
[Round "8"]
[TimeControl "180+1"]
[Date "2023.08.22"]
[WhiteClock "0:00:08"]
[BlackClock "0:01:53"]
[Board "63"]

1. e4 {[%clk 0:03:00]}  c5 {[%clk 0:02:59]} 2. Nf3 {[%clk 0:03:00]}  Nc6 {[%clk 0:02:59]} 3. Bb5 {[%clk 0:03:00]}  e6 {[%clk 0:02:59]} 4. O-O {[%clk 0:02:59]}  Nge7 {[%clk 0:02:59]} 5. Re1 {[%clk 0:02:59]}  b6 {[%clk 0:03:00]} 6. c3 {[%clk 0:02:59]}  a6 {[%clk 0:02:58]} 7. Bxc6 {[%clk 0:02:50]}  Nxc6 {[%clk 0:02:59]} 8. d4 {[%clk 0:02:50]}  d5 {[%clk 0:02:58]} 9. exd5 {[%clk 0:02:34]}  Qxd5 {[%clk 0:02:59]} 10. Be3 {[%clk 0:02:07]}  Be7 {[%clk 0:02:55]} 11. dxc5 {[%clk 0:02:06]}  Qxd1 {[%clk 0:02:55]} 12. Rxd1 {[%clk 0:02:07]}  bxc5 {[%clk 0:02:56]} 13. Na3 {[%clk 0:02:06]}  O-O {[%clk 0:02:56]} 14. Nc4 {[%clk 0:02:06]}  Rb8 {[%clk 0:02:56]} 15. Bf4 {[%clk 0:02:04]}  Rb5 {[%clk 0:02:52]} 16. Bd6 {[%clk 0:01:59]}  Bb7 {[%clk 0:02:46]} 17. Bxe7 {[%clk 0:01:49]}  Nxe7 {[%clk 0:02:47]} 18. a4 {[%clk 0:01:49]}  Rb3 {[%clk 0:02:47]} 19. Nfd2 {[%clk 0:01:48]}  Bd5 {[%clk 0:02:43]} 20. Nxb3 {[%clk 0:01:47]}  Bxc4 {[%clk 0:02:44]} 21. Nxc5 {[%clk 0:01:48]}  Nd5 {[%clk 0:02:43]} 22. b3 {[%clk 0:01:35]}  Be2 {[%clk 0:02:43]} 23. Rd2 {[%clk 0:01:34]}  Rc8 {[%clk 0:02:39]} 24. Rxe2 {[%clk 0:01:28]}  Nxc3 {[%clk 0:02:36]} 25. Rc2 {[%clk 0:01:25]}  Rxc5 {[%clk 0:02:36]} 26. Kf1 {[%clk 0:01:24]}  Nxa4 {[%clk 0:02:34]} 27. Rxc5 {[%clk 0:01:15]}  Nxc5 {[%clk 0:02:35]} 28. b4 {[%clk 0:01:09]}  Nb3 {[%clk 0:02:34]} 29. Rxa6 {[%clk 0:01:09]}  Kf8 {[%clk 0:02:33]} 30. Ra7 {[%clk 0:00:54]}  Nd4 {[%clk 0:02:33]} 31. f4 {[%clk 0:00:42]}  Ke8 {[%clk 0:02:32]} 32. Kf2 {[%clk 0:00:41]}  h5 {[%clk 0:02:27]} 33. g3 {[%clk 0:00:40]}  g6 {[%clk 0:02:15]} 34. Ke3 {[%clk 0:00:39]}  Nc6 {[%clk 0:02:15]} 35. Rb7 {[%clk 0:00:37]}  Ne7 {[%clk 0:02:16]} 36. Rxe7+ {[%clk 0:00:21]}  Kxe7 {[%clk 0:02:17]} 37. Kd4 {[%clk 0:00:21]}  Kd6 {[%clk 0:02:17]} 38. h3 {[%clk 0:00:15]}  f6 {[%clk 0:02:15]} 39. g4 {[%clk 0:00:14]}  Kc6 {[%clk 0:02:05]} 40. g5 {[%clk 0:00:13]}  e5+ {[%clk 0:02:05]} 41. fxe5 {[%clk 0:00:13]}  fxg5 {[%clk 0:02:06]} 42. b5+ {[%clk 0:00:09]}  Kc7 {[%clk 0:02:01]} 43. e6 {[%clk 0:00:08]}  h4 {[%clk 0:01:57]} 44. b6+ {[%clk 0:00:08]}  Kxb6 {[%clk 0:01:55]} 45. e7 {[%clk 0:00:08]}  g4 {[%clk 0:01:53]} 46. e8=Q {[%clk 0:00:08]} 1-0


[Site "https://www.chess.com"]

[Event "Titled Tuesday Blitz August 22 Early 2023"]
[White "Kosteniuk, Alexandra"]
[Black "Martin Carmona, Gaston Manuel"]
[WhiteFideId "4128125"]
[BlackFideId "22284567"]
[WhiteElo "2744"]
[BlackElo "2534"]
[Result "1-0"]
[Round "8"]
[TimeControl "180+1"]
[Date "2023.08.22"]
[WhiteClock "0:01:45"]
[BlackClock "0:00:41"]
[Board "64"]

1. d4 {[%clk 0:03:00]}  Nf6 {[%clk 0:02:59]} 2. c4 {[%clk 0:03:00]}  g6 {[%clk 0:02:59]} 3. Nc3 {[%clk 0:03:00]}  Bg7 {[%clk 0:03:00]} 4. e4 {[%clk 0:03:00]}  d6 {[%clk 0:03:01]} 5. Nf3 {[%clk 0:03:01]}  O-O {[%clk 0:03:01]} 6. Be2 {[%clk 0:03:01]}  e5 {[%clk 0:03:02]} 7. O-O {[%clk 0:03:02]}  exd4 {[%clk 0:03:00]} 8. Nxd4 {[%clk 0:03:01]}  Re8 {[%clk 0:03:01]} 9. f3 {[%clk 0:03:01]}  c6 {[%clk 0:03:01]} 10. Nc2 {[%clk 0:02:59]}  Qb6+ {[%clk 0:03:01]} 11. Be3 {[%clk 0:02:50]}  Qxb2 {[%clk 0:02:57]} 12. Bd4 {[%clk 0:02:44]}  Ng4 {[%clk 0:01:31]} 13. Rb1 {[%clk 0:01:47]}  Bxd4+ {[%clk 0:01:19]} 14. Qxd4 {[%clk 0:01:47]}  Qxc2 {[%clk 0:01:14]} 15. Rfc1 {[%clk 0:01:46]}  c5 {[%clk 0:01:13]} 16. Qxd6 {[%clk 0:01:46]}  Qxc1+ {[%clk 0:00:55]} 17. Rxc1 {[%clk 0:01:46]}  Ne5 {[%clk 0:00:41]} 18. Nd5 {[%clk 0:01:45]} 1-0


[Site "https://www.chess.com"]

[Event "Titled Tuesday Blitz August 22 Early 2023"]
[White "NovozhilovSemen"]
[Black "Wagner, Dennis"]
[BlackFideId "24650684"]
[WhiteElo "2527"]
[BlackElo "2742"]
[Result "0-1"]
[Round "8"]
[TimeControl "180+1"]
[Date "2023.08.22"]
[WhiteClock "0:00:50"]
[BlackClock "0:00:46"]
[Board "65"]

1. d4 {[%clk 0:03:00]}  Nf6 {[%clk 0:03:00]} 2. Nf3 {[%clk 0:03:00]}  b6 {[%clk 0:02:59]} 3. e3 {[%clk 0:03:00]}  Bb7 {[%clk 0:03:00]} 4. Bd3 {[%clk 0:03:00]}  e6 {[%clk 0:02:58]} 5. O-O {[%clk 0:03:01]}  d5 {[%clk 0:02:58]} 6. b3 {[%clk 0:03:01]}  Nbd7 {[%clk 0:02:57]} 7. Bb2 {[%clk 0:03:01]}  Bd6 {[%clk 0:02:56]} 8. c4 {[%clk 0:03:02]}  O-O {[%clk 0:02:55]} 9. Nc3 {[%clk 0:03:02]}  a6 {[%clk 0:02:56]} 10. Rc1 {[%clk 0:03:01]}  Qe7 {[%clk 0:02:54]} 11. Rc2 {[%clk 0:02:58]}  c5 {[%clk 0:02:48]} 12. cxd5 {[%clk 0:02:58]}  exd5 {[%clk 0:02:47]} 13. Bf5 {[%clk 0:02:46]}  Rfd8 {[%clk 0:02:36]} 14. Re1 {[%clk 0:02:38]}  Nf8 {[%clk 0:02:34]} 15. Qe2 {[%clk 0:02:34]}  Ne6 {[%clk 0:02:26]} 16. Bxe6 {[%clk 0:02:33]}  fxe6 {[%clk 0:02:04]} 17. Na4 {[%clk 0:02:33]}  Nd7 {[%clk 0:02:03]} 18. Rec1 {[%clk 0:02:23]}  c4 {[%clk 0:01:56]} 19. bxc4 {[%clk 0:02:09]}  dxc4 {[%clk 0:01:56]} 20. Nc3 {[%clk 0:02:09]}  b5 {[%clk 0:01:53]} 21. e4 {[%clk 0:02:09]}  Bf4 {[%clk 0:01:50]} 22. Rd1 {[%clk 0:02:06]}  Nb6 {[%clk 0:01:49]} 23. a3 {[%clk 0:02:01]}  Rac8 {[%clk 0:01:39]} 24. h4 {[%clk 0:01:51]}  Bd6 {[%clk 0:01:35]} 25. Nb1 {[%clk 0:01:51]}  a5 {[%clk 0:01:31]} 26. Qe3 {[%clk 0:01:33]}  b4 {[%clk 0:01:26]} 27. axb4 {[%clk 0:01:34]}  axb4 {[%clk 0:01:27]} 28. h5 {[%clk 0:01:25]}  c3 {[%clk 0:01:24]} 29. Ba1 {[%clk 0:01:24]}  h6 {[%clk 0:01:00]} 30. Ne1 {[%clk 0:01:16]}  Na4 {[%clk 0:00:53]} 31. Rcc1 {[%clk 0:01:08]}  Qh4 {[%clk 0:00:53]} 32. g3 {[%clk 0:01:06]}  Qxe4 {[%clk 0:00:51]} 33. Qxe4 {[%clk 0:01:04]}  Bxe4 {[%clk 0:00:52]} 34. Nc2 {[%clk 0:00:56]}  b3 {[%clk 0:00:49]} 35. Nxc3 {[%clk 0:00:53]}  Nxc3 {[%clk 0:00:46]} 36. Bxc3 {[%clk 0:00:51]}  bxc2 {[%clk 0:00:46]} 37. Re1 {[%clk 0:00:50]}  Rxc3 {[%clk 0:00:46]} 0-1


[Site "https://www.chess.com"]

[Event "Titled Tuesday Blitz August 22 Early 2023"]
[White "Blanco Ronquillo, Humberto L."]
[Black "Balabayeva, Xeniya"]
[WhiteFideId "3504239"]
[BlackFideId "13719688"]
[WhiteElo "2710"]
[BlackElo "2526"]
[Result "1-0"]
[Round "8"]
[TimeControl "180+1"]
[Date "2023.08.22"]
[WhiteClock "0:00:18"]
[BlackClock "0:00:00"]
[Board "66"]

1. d4 {[%clk 0:03:00]}  d5 {[%clk 0:02:57]} 2. c4 {[%clk 0:02:59]}  e6 {[%clk 0:02:56]} 3. Nc3 {[%clk 0:03:00]}  Nf6 {[%clk 0:02:54]} 4. Nf3 {[%clk 0:03:00]}  c5 {[%clk 0:02:49]} 5. cxd5 {[%clk 0:02:56]}  cxd4 {[%clk 0:02:48]} 6. Qxd4 {[%clk 0:02:54]}  exd5 {[%clk 0:02:48]} 7. Bg5 {[%clk 0:02:51]}  Be7 {[%clk 0:02:46]} 8. e3 {[%clk 0:02:49]}  O-O {[%clk 0:02:45]} 9. Be2 {[%clk 0:02:27]}  Nc6 {[%clk 0:02:42]} 10. Qa4 {[%clk 0:02:27]}  Be6 {[%clk 0:02:29]} 11. O-O {[%clk 0:02:25]}  Qb6 {[%clk 0:02:28]} 12. Qb5 {[%clk 0:02:20]}  Qxb5 {[%clk 0:02:21]} 13. Nxb5 {[%clk 0:02:21]}  Rac8 {[%clk 0:02:18]} 14. Rac1 {[%clk 0:02:15]}  Rfd8 {[%clk 0:02:06]} 15. Rfd1 {[%clk 0:02:11]}  Kf8 {[%clk 0:02:01]} 16. h3 {[%clk 0:02:07]}  h6 {[%clk 0:01:48]} 17. Bh4 {[%clk 0:02:07]}  g5 {[%clk 0:01:44]} 18. Bg3 {[%clk 0:02:07]}  Ne4 {[%clk 0:01:42]} 19. Bh2 {[%clk 0:02:07]}  Bf6 {[%clk 0:01:35]} 20. Nbd4 {[%clk 0:01:53]}  Nb4 {[%clk 0:01:16]} 21. a3 {[%clk 0:01:46]}  Nc6 {[%clk 0:01:13]} 22. Bd3 {[%clk 0:01:33]}  g4 {[%clk 0:00:53]} 23. hxg4 {[%clk 0:00:59]}  Bxg4 {[%clk 0:00:54]} 24. Nxc6 {[%clk 0:00:53]}  Rxc6 {[%clk 0:00:46]} 25. Rxc6 {[%clk 0:00:40]}  bxc6 {[%clk 0:00:42]} 26. b4 {[%clk 0:00:40]}  Ng5 {[%clk 0:00:25]} 27. Be2 {[%clk 0:00:36]}  Bb2 {[%clk 0:00:21]} 28. a4 {[%clk 0:00:29]}  Bc3 {[%clk 0:00:17]} 29. b5 {[%clk 0:00:27]}  cxb5 {[%clk 0:00:17]} 30. axb5 {[%clk 0:00:28]}  Bxf3 {[%clk 0:00:12]} 31. gxf3 {[%clk 0:00:29]}  Ne6 {[%clk 0:00:10]} 32. f4 {[%clk 0:00:18]}  f6 {[%clk 0:00:00]} 33. f5 {[%clk 0:00:18]} 1-0


[Site "https://www.chess.com"]

[Event "Titled Tuesday Blitz August 22 Early 2023"]
[White "Lehtosaari, Mauri"]
[Black "Matinian, Nikita"]
[WhiteFideId "501999"]
[BlackFideId "24129100"]
[WhiteElo "2525"]
[BlackElo "2702"]
[Result "0-1"]
[Round "8"]
[TimeControl "180+1"]
[Date "2023.08.22"]
[WhiteClock "0:00:10"]
[BlackClock "0:01:07"]
[Board "67"]

1. d4 {[%clk 0:03:00]}  Nf6 {[%clk 0:03:00]} 2. Nf3 {[%clk 0:02:57]}  e6 {[%clk 0:02:59]} 3. Bg5 {[%clk 0:02:57]}  h6 {[%clk 0:02:57]} 4. Bh4 {[%clk 0:02:56]}  g5 {[%clk 0:02:57]} 5. Bg3 {[%clk 0:02:56]}  Ne4 {[%clk 0:02:57]} 6. Nbd2 {[%clk 0:02:54]}  Nxg3 {[%clk 0:02:57]} 7. hxg3 {[%clk 0:02:54]}  c5 {[%clk 0:02:57]} 8. c3 {[%clk 0:02:50]}  Nc6 {[%clk 0:02:57]} 9. e3 {[%clk 0:02:47]}  d5 {[%clk 0:02:53]} 10. Bd3 {[%clk 0:02:44]}  f5 {[%clk 0:02:41]} 11. Bb5 {[%clk 0:02:25]}  Bd6 {[%clk 0:02:32]} 12. dxc5 {[%clk 0:02:11]}  Bc7 {[%clk 0:02:25]} 13. Nd4 {[%clk 0:02:07]}  Bd7 {[%clk 0:02:22]} 14. Qh5+ {[%clk 0:02:05]}  Ke7 {[%clk 0:02:22]} 15. Qg6 {[%clk 0:01:40]}  Qg8 {[%clk 0:02:20]} 16. Qxg8 {[%clk 0:00:43]}  Raxg8 {[%clk 0:02:21]} 17. Nxc6+ {[%clk 0:00:41]}  bxc6 {[%clk 0:02:22]} 18. Bd3 {[%clk 0:00:39]}  e5 {[%clk 0:02:21]} 19. b4 {[%clk 0:00:39]}  h5 {[%clk 0:02:20]} 20. O-O-O {[%clk 0:00:37]}  h4 {[%clk 0:02:18]} 21. gxh4 {[%clk 0:00:36]}  gxh4 {[%clk 0:02:18]} 22. Bf1 {[%clk 0:00:28]}  e4 {[%clk 0:02:10]} 23. Nb3 {[%clk 0:00:26]}  f4 {[%clk 0:02:10]} 24. Nd4 {[%clk 0:00:21]}  fxe3 {[%clk 0:02:10]} 25. fxe3 {[%clk 0:00:22]}  Rg3 {[%clk 0:02:10]} 26. Re1 {[%clk 0:00:22]}  Kf6 {[%clk 0:01:31]} 27. Kd2 {[%clk 0:00:21]}  Ke5 {[%clk 0:01:28]} 28. a3 {[%clk 0:00:21]}  Bd8 {[%clk 0:01:28]} 29. Re2 {[%clk 0:00:17]}  Bg5 {[%clk 0:01:27]} 30. a4 {[%clk 0:00:14]}  Rf8 {[%clk 0:01:27]} 31. a5 {[%clk 0:00:14]}  Rf6 {[%clk 0:01:11]} 32. Nc2 {[%clk 0:00:13]}  Bg4 {[%clk 0:01:11]} 33. Nd4 {[%clk 0:00:11]}  Bxe2 {[%clk 0:01:09]} 34. Kxe2 {[%clk 0:00:10]}  Rxe3+ {[%clk 0:01:07]} 0-1


[Site "https://www.chess.com"]

[Event "Titled Tuesday Blitz August 22 Early 2023"]
[White "Issabayev, Dias"]
[Black "Kavutskiy, Konstantin"]
[WhiteFideId "13703110"]
[BlackFideId "2026384"]
[WhiteElo "2515"]
[BlackElo "2678"]
[Result "1-0"]
[Round "8"]
[TimeControl "180+1"]
[Date "2023.08.22"]
[WhiteClock "0:00:06"]
[BlackClock "0:00:09"]
[Board "71"]

1. Nf3 {[%clk 0:03:00]}  Nf6 {[%clk 0:02:59]} 2. b3 {[%clk 0:02:59]}  g6 {[%clk 0:02:59]} 3. Bb2 {[%clk 0:02:59]}  Bg7 {[%clk 0:02:59]} 4. g3 {[%clk 0:02:59]}  O-O {[%clk 0:02:59]} 5. Bg2 {[%clk 0:03:00]}  d6 {[%clk 0:03:00]} 6. d4 {[%clk 0:02:59]}  a5 {[%clk 0:03:00]} 7. O-O {[%clk 0:02:58]}  a4 {[%clk 0:03:00]} 8. c4 {[%clk 0:02:58]}  c6 {[%clk 0:03:00]} 9. bxa4 {[%clk 0:02:58]}  Nbd7 {[%clk 0:02:49]} 10. Nc3 {[%clk 0:02:58]}  Qa5 {[%clk 0:02:46]} 11. Nd2 {[%clk 0:02:51]}  Nb6 {[%clk 0:02:41]} 12. Qb3 {[%clk 0:02:37]}  Nxa4 {[%clk 0:02:40]} 13. Nxa4 {[%clk 0:02:37]}  Qxa4 {[%clk 0:02:41]} 14. e4 {[%clk 0:02:35]}  Nd7 {[%clk 0:02:31]} 15. Rfb1 {[%clk 0:02:10]}  c5 {[%clk 0:02:30]} 16. d5 {[%clk 0:02:04]}  Bxb2 {[%clk 0:02:30]} 17. Qxb2 {[%clk 0:02:04]}  Ne5 {[%clk 0:02:17]} 18. Qc3 {[%clk 0:02:03]}  Qa5 {[%clk 0:02:15]} 19. Qxa5 {[%clk 0:02:02]}  Rxa5 {[%clk 0:02:15]} 20. f4 {[%clk 0:02:03]}  Ng4 {[%clk 0:02:05]} 21. a4 {[%clk 0:01:57]}  Ne3 {[%clk 0:01:57]} 22. Ra2 {[%clk 0:01:50]}  e6 {[%clk 0:01:29]} 23. Bf3 {[%clk 0:01:45]}  h5 {[%clk 0:01:06]} 24. Ra3 {[%clk 0:01:28]}  Ng4 {[%clk 0:01:05]} 25. Nb3 {[%clk 0:01:23]}  Ra8 {[%clk 0:01:04]} 26. a5 {[%clk 0:01:22]}  Ne3 {[%clk 0:01:04]} 27. Nd2 {[%clk 0:01:21]}  Nc2 {[%clk 0:01:04]} 28. Rc3 {[%clk 0:01:10]}  Nb4 {[%clk 0:01:04]} 29. Nb3 {[%clk 0:01:08]}  exd5 {[%clk 0:01:01]} 30. cxd5 {[%clk 0:01:08]}  Re8 {[%clk 0:01:01]} 31. e5 {[%clk 0:01:03]}  Bf5 {[%clk 0:00:58]} 32. Rd1 {[%clk 0:00:55]}  Bc2 {[%clk 0:00:55]} 33. Rc1 {[%clk 0:00:50]}  Bxb3 {[%clk 0:00:46]} 34. Rxb3 {[%clk 0:00:51]}  Rxa5 {[%clk 0:00:44]} 35. exd6 {[%clk 0:00:51]}  Rd8 {[%clk 0:00:44]} 36. Re1 {[%clk 0:00:33]}  Rxd6 {[%clk 0:00:41]} 37. Re8+ {[%clk 0:00:34]}  Kg7 {[%clk 0:00:41]} 38. Rb8 {[%clk 0:00:30]}  b6 {[%clk 0:00:40]} 39. Re3 {[%clk 0:00:29]}  Ra7 {[%clk 0:00:37]} 40. Ree8 {[%clk 0:00:19]}  Rc7 {[%clk 0:00:36]} 41. Red8 {[%clk 0:00:19]}  Rxd8 {[%clk 0:00:26]} 42. Rxd8 {[%clk 0:00:20]}  Kf6 {[%clk 0:00:26]} 43. d6 {[%clk 0:00:20]}  Ra7 {[%clk 0:00:26]} 44. Kf2 {[%clk 0:00:11]}  Ke6 {[%clk 0:00:21]} 45. g4 {[%clk 0:00:12]}  hxg4 {[%clk 0:00:18]} 46. Bxg4+ {[%clk 0:00:12]}  f5 {[%clk 0:00:19]} 47. Bf3 {[%clk 0:00:12]}  Rd7 {[%clk 0:00:18]} 48. Rg8 {[%clk 0:00:12]}  Rxd6 {[%clk 0:00:15]} 49. Rxg6+ {[%clk 0:00:13]}  Ke7 {[%clk 0:00:16]} 50. Rg5 {[%clk 0:00:08]}  Kf6 {[%clk 0:00:16]} 51. h4 {[%clk 0:00:09]}  c4 {[%clk 0:00:15]} 52. h5 {[%clk 0:00:08]}  c3 {[%clk 0:00:15]} 53. Rg6+ {[%clk 0:00:09]}  Ke7 {[%clk 0:00:14]} 54. Rxd6 {[%clk 0:00:09]}  Kxd6 {[%clk 0:00:15]} 55. Ke3 {[%clk 0:00:04]}  Ke7 {[%clk 0:00:10]} 56. h6 {[%clk 0:00:04]}  Kf6 {[%clk 0:00:10]} 57. Bh5 {[%clk 0:00:04]}  Nd5+ {[%clk 0:00:08]} 58. Kd4 {[%clk 0:00:03]}  b5 {[%clk 0:00:08]} 59. Bd1 {[%clk 0:00:02]}  b4 {[%clk 0:00:08]} 60. Kxd5 {[%clk 0:00:03]}  Kg6 {[%clk 0:00:08]} 61. Kc5 {[%clk 0:00:03]}  Kxh6 {[%clk 0:00:06]} 62. Kxb4 {[%clk 0:00:03]}  c2 {[%clk 0:00:07]} 63. Bxc2 {[%clk 0:00:03]}  Kh5 {[%clk 0:00:08]} 64. Bxf5 {[%clk 0:00:03]}  Kh4 {[%clk 0:00:09]} 65. Be6 {[%clk 0:00:03]}  Kh5 {[%clk 0:00:09]} 66. f5 {[%clk 0:00:04]}  Kh6 {[%clk 0:00:10]} 67. Kc5 {[%clk 0:00:05]}  Kg7 {[%clk 0:00:11]} 68. Kd5 {[%clk 0:00:06]}  Kf6 {[%clk 0:00:09]} 69. Kd6 {[%clk 0:00:06]} 1-0


[Site "https://www.chess.com"]